Workbook

Sheet допущенные
A1: ОУ | B1: Кол-во учащихся по ОШ1 | M1: Кол-во учащихся допущенных к сдаче ГТО
B2: всего | C2: 6-8 лет | E2: 9-10 лет | G2: 11-12 лет | I2: 13-15 лет | K2: 16-17 лет | M2: всего | N2: 6-8 лет | P2: 9-10 лет | R2: 11-12 лет | T2: 13-15 лет | V2: 16-17 лет
C3: М | D3: Д | E3: М | F3: Д | G3: М | H3: Д | I3: М | J3: Д | K3: М | L3: Д | N3: М | O3: Д | P3: М | Q3: Д | R3: М | S3: Д | T3: М | U3: Д | V3: М | W3: Д
A4: 144 | B4: 1019 | C4: 112 | D4: 116 | E4: 101 | F4: 122 | G4: 112 | H4: 119 | I4: 114 | J4: 125 | K4: 32 | L4: 66 | M4: 626 | N4: 80 | O4: 77 | P4: 75 | Q4: 55 | R4: 81 | S4: 80 | T4: 75 | U4: 65 | V4: 12 | W4: 26

Sheet табл.1 МОиН РТ
A2: ОУ | B2: Приступило ОУ к сдаче норм ГТО (да-1, нет-0) | C2: Кол-во учащихся основной группы по физической культуре, допущенных к сдаче норм ГТО | F2: Кол-во обучающихся основной группы по физической культуре, приступивших к сдаче нормативов | I2: Кол-во учащихся основной группы по физической культуре, справившихся с выполнением нормативов в полном объеме | R2: Кол-во учащихся основной группы по физической культуре, справившихся с выполнением нормативов не в полном объеме | U2: Кол-во учащихся основной группы по физической культуре, не справившихся с выполнением нормативов
C3: всего | D3: М | E3: Д | F3: всего | G3: М | H3: Д | I3: Бронзовый уровень | L3: Серебряный уровень | O3: Золотой уровень | R3: всего | S3: М | T3: Д | U3: всего | V3: М | W3: Д
I4: всего | J4: М | K4: Д | L4: всего | M4: М | N4: Д | O4: всего | P4: М | Q4: Д
A5: 144 | B5: 1 | C5: 626 | D5: 323 | E5: 303 | F5: 626 | G5: 323 | H5: 303 | I5: 163 | J5: 89 | K5: 74 | L5: 122 | M5: 72 | N5: 50 | O5: 57 | P5: 31 | Q5: 26 | R5: 216 | S5: 95 | T5: 121 | U5: 68 | V5: 36 | W5: 32

Sheet по нормативам отдельно
A1: ОУ | B1: Наименование норматива | C1: Ступень (возраст детей) | D1: Кол-во обучающихся основной группы по физической культуре, приступивших к сдаче норматива | G1: Кол-во учащихся основной группы по физической культуре, справившихся с выполнением нормативов в полном объеме | J1: Кол-во учащихся основной группы по физической культуре, справившихся с выполнением нормативов не в полном объеме | M1: Кол-во учащихся основной группы по физической культуре, не справившихся с выполнением нормативов
D2: всего | E2: М | F2: Д | G2: всего | H2: М | I2: Д | J2: всего | K2: М | L2: Д | M2: всего | N2: М | O2: Д
B3: бег на 60м (с) | C3: 6-8 лет | D3: =E3+F3 -> 157 | E3: 80 | F3: 77 | G3: =H3+I3 -> 78 | H3: 40 | I3: 38 | J3: =K3+L3 -> 64 | K3: 28 | L3: 36 | M3: =N3+O3 -> 15 | N3: 12 | O3: 3
B4: Бег на 1 км. (мин, с) | D4: =E4+F4 -> 157 | E4: 80 | F4: 77 | G4: =H4+I4 -> 91 | H4: 45 | I4: 46 | J4: =K4+L4 -> 36 | K4: 30 | L4: 6 | M4: =N4+O4 -> 30 | N4: 5 | O4: 25
B5: Прыжок в длину с разбега (см) | D5: 0 | E5: 0 | F5: 0 | G5: 0 | H5: 0 | I5: 0 | J5: 0 | K5: 0 | L5: 0 | M5: 0 | N5: 0 | O5: 0
B6: Или прыжок в длину с места толчком двумя ногами (см) | D6: 157 | E6: 80 | F6: 77 | G6: 85 | H6: 44 | I6: 41 | J6: 28 | K6: 12 | L6: 16 | M6: 44 | N6: 24 | O6: 20
B7: Плавание без учета времени(м) | D7: 0 | E7: 0 | F7: 0 | G7: 0 | H7: 0 | I7: 0 | J7: 0 | K7: 0 | L7: 0 | M7: 0 | N7: 0 | O7: 0
B8: бег на 60м (с) | C8: 9-10 лет | D8: 130 | E8: 75 | F8: 55 | G8: 88 | H8: 52 | I8: 36 | J8: 31 | K8: 17 | L8: 14 | M8: 11 | N8: 6 | O8: 5
B9: Бег на 1 км. (мин, с) | D9: 130 | E9: 75 | F9: 55 | G9: 83 | H9: 50 | I9: 33 | J9: 23 | K9: 10 | L9: 13 | M9: 24 | N9: 15 | O9: 9
B10: Прыжок в длину с разбега (см) | D10: 0 | E10: 0 | F10: 0 | G10: 0 | H10: 0 | I10: 0 | J10: 0 | K10: 0 | L10: 0 | M10: 0 | N10: 0 | O10: 0
B11: Или прыжок в длину с места толчком двумя ногами (см) | D11: 130 | E11: 75 | F11: 55 | G11: 75 | H11: 47 | I11: 28 | J11: 31 | K11: 16 | L11: 15 | M11: 24 | N11: 12 | O11: 12
B12: Плавание без учета времени(м) | D12: 0 | E12: 0 | F12: 0 | G12: 0 | H12: 0 | I12: 0 | J12: 0 | K12: 0 | L12: 0 | M12: 0 | N12: 0 | O12: 0
B13: бег на 60м (с) | C13: 11-12 лет | D13: 161 | E13: 81 | F13: 80 | G13: 131 | H13: 70 | I13: 61 | J13: 35 | K13: 12 | L13: 23 | M13: 0 | N13: 0 | O13: 0
B14: Бег на 1,5 км. (мин, с) | D14: 161 | E14: 81 | F14: 80 | G14: 76 | H14: 42 | I14: 34 | J14: 85 | K14: 39 | L14: 46 | M14: 0 | N14: 0 | O14: 0
B15: Или на 2 км (мин,с) | D15: 0 | E15: 0 | F15: 0 | G15: 0 | H15: 0 | I15: 0 | J15: 0 | K15: 0 | L15: 0 | M15: 0 | N15: 0 | O15: 0
B16: Прыжок в длину с разбега (см) | D16: 0 | E16: 0 | F16: 0 | G16: 0 | H16: 0 | I16: 0 | J16: 0 | K16: 0 | L16: 0 | M16: 0 | N16: 0 | O16: 0
B17: Или прыжок в длину с места толчком двумя ногами (см) | D17: 161 | E17: 81 | F17: 80 | G17: 161 | H17: 81 | I17: 80 | J17: 0 | K17: 0 | L17: 0 | M17: 0 | N17: 0 | O17: 0
B18: Плавание 50 м (мин,с) | D18: 0 | E18: 0 | F18: 0 | G18: 0 | H18: 0 | I18: 0 | J18: 0 | K18: 0 | L18: 0 | M18: 0 | N18: 0 | O18: 0
B19: бег на 60м (с) | C19: 13-15 лет | D19: 140 | E19: 75 | F19: 65 | G19: 125 | H19: 67 | I19: 58 | J19: 15 | K19: 8 | L19: 7 | M19: 0 | N19: 0 | O19: 0
B20: Бег на 2 км. (мин, с) | D20: 140 | E20: 75 | F20: 65 | G20: 93 | H20: 56 | I20: 37 | J20: 47 | K20: 17 | L20: 30 | M20: 0 | N20: 0 | O20: 0
B21: Или на 3 км (мин,с) девочки нет | D21: 0 | E21: 0 | F21: 0 | G21: 0 | H21: 0 | I21: 0 | J21: 0 | K21: 0 | L21: 0 | M21: 0 | N21: 0 | O21: 0
B22: Прыжок в длину с разбега (см) | D22: 0 | E22: 0 | F22: 0 | G22: 0 | H22: 0 | I22: 0 | J22: 0 | K22: 0 | L22: 0 | M22: 0 | N22: 0 | O22: 0
B23: Или прыжок в длину с места толчком двумя ногами (см) | D23: 140 | E23: 75 | F23: 65 | G23: 133 | H23: 74 | I23: 59 | J23: 7 | K23: 1 | L23: 6 | M23: 0 | N23: 0 | O23: 0
B24: Плавание 50 м (мин,с) | D24: 0 | E24: 0 | F24: 0 | G24: 0 | H24: 0 | I24: 0 | J24: 0 | K24: 0 | L24: 0 | M24: 0 | N24: 0 | O24: 0
B25: бег на 100м (с) | C25: 16-17 лет | D25: 38 | E25: 12 | F25: 26 | G25: 37 | H25: 12 | I25: 25 | J25: 1 | K25: 0 | L25: 1 | M25: 0 | N25: 0 | O25: 0
B26: Бег на 2 км. (мин, с) | D26: 38 | E26: 12 | F26: 26 | G26: 21 | H26: 9 | I26: 12 | J26: 17 | K26: 3 | L26: 14 | M26: 0 | N26: 0 | O26: 0
B27: Или на 3 км (мин,с) девочки нет | D27: 0 | E27: 0 | F27: 0 | G27: 0 | H27: 0 | I27: 0 | J27: 0 | K27: 0 | L27: 0 | M27: 0 | N27: 0 | O27: 0
B28: Прыжок в длину с разбега (см) | D28: 0 | E28: 0 | F28: 0 | G28: 0 | H28: 0 | I28: 0 | J28: 0 | K28: 0 | L28: 0 | M28: 0 | N28: 0 | O28: 0
B29: Или прыжок в длину с места толчком двумя ногами (см) | D29: 38 | E29: 12 | F29: 26 | G29: 38 | H29: 12 | I29: 26 | J29: 0 | K29: 0 | L29: 0 | M29: 0 | N29: 0 | O29: 0
B30: Плавание 50 м (мин,с) | D30: 0 | E30: 0 | F30: 0 | G30: 0 | H30: 0 | I30: 0 | J30: 0 | K30: 0 | L30: 0 | M30: 0 | N30: 0 | O30: 0

Sheet программа по зап.1 и 2 табл
A1: ОУ | B1: Кол-во учащихся по ОШ1 | W1: Кол-во учащихся допущенных к сдаче ГТО | AH1: Кол-во учащихся основной группы по физической культуре, допущенных к сдаче норм ГТО | AK1: Кол-во обучающихся основной группы по физической культуре, приступивших к сдаче нормативов | AN1: Кол-во учащихся основной группы по физической культуре, справившихся с выполнением нормативов в полном объеме | AW1: Кол-во учащихся основной группы по физической культуре, справившихся с выполнением нормативов не в полном объеме | AZ1: Кол-во учащихся основной группы по физической культуре, не справившихся с выполнением нормативов
B2: всего | C2: 6-8 лет | G2: 9-10 лет | K2: 11-12 лет | O2: 13-15 лет | S2: 16-17 лет | W2: всего | X2: 6-8 лет | Z2: 9-10 лет | AB2: 11-12 лет | AD2: 13-15 лет | AF2: 16-17 лет | AH2: всего | AI2: М | AJ2: Д | AK2: всего | AL2: М | AM2: Д | AN2: Бронзовый уровень | AQ2: Серебряный уровень | AT2: Золотой уровень | AW2: всего | AX2: М | AY2: Д | AZ2: всего | BA2: М | BB2: Д
C3: М | D3: Д | E3: проверка | G3: М | H3: Д | I3: проверка | K3: М | L3: Д | M3: проверка | O3: М | P3: Д | Q3: проверка | S3: М | T3: Д | U3: проверка | X3: М | Y3: Д | Z3: М | AA3: Д | AB3: М | AC3: Д | AD3: М | AE3: Д | AF3: М | AG3: Д | AN3: всего | AO3: М | AP3: Д | AQ3: всего | AR3: М | AS3: Д | AT3: всего | AU3: М | AV3: Д
A4: 144 | B4: =C4+D4+G4+H4+K4+L4+O4+P4+S4+T4 -> 1019 | C4: 112 | D4: 116 | E4: =C4+D4 -> 228 | F4: =X4+Y4 -> 157 | G4: 101 | H4: 122 | I4: =G4+H4 -> 223 | J4: =AB4+AC4 -> 161 | K4: 112 | L4: 119 | M4: =K4+L4 -> 231 | N4: =AF4+AG4 -> 38 | O4: 114 | P4: 125 | Q4: =O4+P4 -> 239 | R4: =AJ4+AK4 -> 929 | S4: 32 | T4: 66 | U4: =S4+T4 -> 98 | V4: =AN4+AO4 -> 252 | W4: =X4+Y4+Z4+AA4+AB4+AC4+AD4+AF4+AG4 -> 561 | X4: 80 | Y4: 77 | Z4: 75 | AA4: 55 | AB4: 81 | AC4: 80 | AD4: 75 | AE4: 65 | AF4: 12 | AG4: 26 | AH4: =AI4+AJ4 -> 626 | AI4: =X4+Z4+AB4+AD4+AF4 -> 323 | AJ4: =Y4+AA4+AC4+AE4+AG4 -> 303 | AK4: =AL4+AM4 -> 626 | AL4: 323 | AM4: 303 | AN4: =AO4+AP4 -> 163 | AO4: 89 | AP4: 74 | AQ4: =AR4+AS4 -> 122 | AR4: 72 | AS4: 50 | AT4: =AU4+AV4 -> 57 | AU4: 31 | AV4: 26 | AW4: =AX4+AY4 -> 216 | AX4: 95 | AY4: 121 | AZ4: =BA4+BB4 -> 68 | BA4: 36 | BB4: 32
C7: - незаполняем, машина считает сама
C9: - проверки, рядом стоящие столбцы д.б. одмнаковы, если разные, значит ошибки
